Cogmind - Beta 11.1 @@@ ROGUE MODE // 2022.05.24 @ 11:56:15 Player: Pogmind Result: Destroyed by G-50 Soldier with Heavy Laser Performance ------------- Evolutions (5) 2500 Regions Visited (17) 3400 Robots Destroyed (325) 1625 Value Destroyed (11798) 11798 Prototype IDs (19) 380 Alien Tech Used (0) 0 Bonus (3558) 3558 TOTAL SCORE: 23261 Bonus ------- High Alert Combat Kills 839 Follower Combat Kills 1419 Entered Garrisons 600 Used RIF Installer 1500 Friendly Fire -800 Cogmind --------- Core Integrity 0/1000 Matter 55/300 Energy 158/160 System Corruption 1% Temperature Cool (9) Movement Treading (160) Location -5/Hub_04(d) Parts ------- > --- POWER (1) -------- Light Fission Core > --- PROPULSION (4) --- Improved Treads Improved Treads Centrium Heavy Treads > --- UTILITY (10) ----- Advanced Heat Sink Huge Storage Unit Advanced Visual Processing Unit Advanced Signal Interpreter Improved Weapon Cycler Stasis Canceller Improved Hacking Suite > --- WEAPON (2) ------- Bore Cannon Lance > --- INVENTORY (25) --- Improved Treads Medium Treads Armored Wheel Improved VTOL Module Improved VTOL Module Improved VTOL Module Biomechanical Wings Improved Hacking Suite Improved Hacking Suite Improved Hacking Suite Improved Hacking Suite Improved System Shield Improved System Shield Advanced System Shield Authchip [Propulsion] Relay Coupler [NC] (34) Relay Coupler [Swarmer] (39) Autogun KE Penetrator KE Penetrator Enhanced Gauss Cannon Advanced Datajack Improved Remote Datajack Peak State ------------ > --- POWER ------------ Particle Reactor > --- PROPULSION ------- Medium Treads Medium Treads Centrium Heavy Treads > --- UTILITY ---------- Huge Storage Unit Advanced Visual Processing Unit Advanced Signal Interpreter Improved Medium Armor Plating Damper Plating Improved Hacking Suite Drone Bay > --- WEAPON ----------- Enhanced Gauss Cannon Enhanced Gauss Cannon > --- INVENTORY -------- Improved Treads Improved Treads Medium Treads Armored Wheel Improved VTOL Module Improved VTOL Module Improved VTOL Module Biomechanical Wings Improved Weapon Cycler Centrium Medium Armor Plating Improved Hacking Suite Improved Hacking Suite Improved System Shield Improved System Shield Improved System Shield Advanced System Shield Authchip [Propulsion] Relay Coupler [NC] Relay Coupler [Swarmer] Bore Cannon Bore Cannon Advanced Datajack Improved Remote Datajack Lance [Rating: 104] Favorites ----------- Power Improved Ion Engine Engine Improved Ion Engine Power Core Light Fission Core Reactor Antimatter Reactor Propulsion Light Treads Treads Light Treads Leg Enhanced Armored Leg Wheel Armored Wheel Hover Unit Gravmag System Flight Unit Improved VTOL Module Utility Huge Storage Unit Device Improved Heat Sink Storage Huge Storage Unit Processor Advanced Visual Processing Unit Hackware Hacking Suite Protection Medium Armor Plating Weapon Heavy Assault Rifle Energy Gun EM Pulse Gun Energy Cannon Heavy Ion Cannon Ballistic Gun Heavy Assault Rifle Ballistic Cannon Enhanced Gauss Cannon Launcher Heavy Missile Launcher Special Weapon Remote Datajack Slashing Weapon Power Sword Piercing Weapon Lance Build | -11 -10 -10 -9 -9 -9 -9 -7 -7 -6 -6 -6 -6 -5 -5 -5 -5 -5 ------- Run | Scr Mat Min Mat Sto Gar Rec Fac Gar Fac Was Fac Gar Fac Ext Cet Arc Hub Slots Evolved 10 | . . . 2 . . . 4 . 2 . . . 2 . . . . Power . | . . . . . . . . . . . . . . . . . . Propulsion 2 | . . . . . . . 1 . . . . . 1 . . . . Utility 8 | . . . 2 . . . 3 . 2 . . . 1 . . . . Weapon . | . . . . . . . . . . . . . . . . . . Parts Attached 482 | 8 11 7 36 30 7 9 6 38 70 7 33 50 49 80 6 16 19 Power 30 | 1 1 1 6 2 . . . 3 4 1 1 2 3 3 . 1 1 Engine 22 | 1 1 1 6 2 . . . 2 2 . 1 2 2 2 . . . Core 6 | . . . . . . . . 1 2 . . . 1 1 . . 1 Reactor 2 | . . . . . . . . . . 1 . . . . . 1 . Propulsion 98 | 2 . . 8 3 1 3 3 7 24 2 5 8 9 14 . 6 3 Treads 59 | 2 . . 7 3 1 1 2 6 8 1 4 5 3 8 . 5 3 Leg 12 | . . . . . . . . . . . . . 6 6 . . . Wheel 15 | . . . . . . 2 1 1 9 1 . 1 . . . . . Hover 1 | . . . . . . . . . . . . . . . . 1 . Flight 11 | . . . 1 . . . . . 7 . 1 2 . . . . . Utility 155 | 1 6 2 10 10 . 5 3 11 22 3 7 24 17 21 1 7 5 Device 48 | . 1 . . 4 . . . 5 8 . 1 9 1 10 1 5 3 Storage 6 | 1 2 . 1 . . . . . 1 1 . . . . . . . Processor 12 | . 1 . . . . 1 . . 5 . . . 5 . . . . Hackware 23 | . . . . . . . 3 . 4 . . 6 7 3 . . . Protection 66 | . 2 2 9 6 . 4 . 6 4 2 6 9 4 8 . 2 2 Artifact . | . . . . . . . . . . . . . . . . . . Weapon 199 | 4 4 4 12 15 6 1 . 17 20 1 20 16 20 42 5 2 10 Energy Gun 14 | 3 1 . . 1 . . . . . . 4 . 3 . 2 . . Energy Cannon 14 | . . . . . . . . . 6 . 1 2 3 1 1 . . Ballistic Gun 61 | 1 2 2 9 8 4 . . 9 8 . 5 1 1 9 . . 2 Ballistic Cannon 21 | . . . . . . . . . . . . . . 13 2 1 5 Launcher 21 | . 1 2 3 1 2 . . 3 2 . 2 2 1 2 . . . Special Weapon 27 | . . . . 1 . . . . 2 1 3 6 6 7 . . 1 Impact Weapon . | . . . . . . . . . . . . . . . . . . Slashing Weapon 37 | . . . . 4 . 1 . 5 2 . 5 5 6 9 . . . Piercing Weapon 4 | . . . . . . . . . . . . . . 1 . 1 2 Special Melee Weapon . | . . . . . . . . . . . . . . . . . . Unidentified Prototypes 12 | . . . 1 1 . . . . 1 . 2 1 3 . 1 2 . Corrupted Parts 1 | . . . . . . . . . . . . . 1 . . . . System Corruption 6 | . . . . . . . . . . . . . 6 . . . . Parts Lost 114 | . . 3 13 14 1 . . 20 8 . 2 11 15 17 . 1 9 Power 12 | . . 1 1 2 . . . 1 . . 1 2 1 1 . 1 1 Propulsion 32 | . . . 3 3 . . . 4 4 . . 3 4 9 . . 2 Utility 49 | . . 2 6 6 . . . 10 3 . 1 5 7 4 . . 5 Weapon 21 | . . . 3 3 1 . . 5 1 . . 1 3 3 . . 1 Highest Loss Streak 14 | . . 1 3 7 1 . . 14 4 . 2 3 7 6 . 1 6 To Critical Strikes . | . . . . . . . . . . . . . . . . . . Average Slot Usage (%) 95 | . 99 99 99 97 99 100 98 95 97 78 82 92 85 97 99 90 75 Engine 7 | . 14 13 10 10 11 11 7 4 4 . 3 5 3 1 5 . . Treads 17 | . 28 28 21 21 22 15 7 17 5 3 11 12 6 13 23 22 17 Leg 1 | . . . . . . . . . . . . . 9 8 . . . Wheel 1 | . . . . . . 6 15 4 9 5 1 . . . . . . Device 5 | . 1 . . 2 . . . 17 22 2 . 14 8 7 10 10 7 Storage 8 | . 14 14 11 11 11 11 7 7 6 5 6 6 5 5 5 5 5 Processor 5 | . . . . . . . . . 8 13 13 13 14 17 11 11 11 Hackware 6 | . . . . . . . 21 13 11 13 10 10 19 13 11 10 5 Protection 18 | . 11 13 32 28 33 33 23 12 5 5 19 13 3 9 17 10 9 Energy Cannon 1 | . . . . . . . . . 5 . . 5 3 . . . . Ballistic Gun 12 | . 12 27 21 17 19 21 7 10 5 . 7 . . 3 . . . Special Weapon 1 | . . . . 3 1 . . . . 6 1 2 2 . . . . Slashing Weapon 1 | . . . . . . . 7 3 . 6 1 3 2 . . . . Naked Turns . | . . . . . . . . . . . . . . . . . . Heaviest Build 174 | 12 92 92 108 111 110 110 109 111 118 147 148 134 113 131 131 174 174 Greatest Support 140 | 40 40 40 40 43 43 43 24 66 24 70 98 98 140 116 109 136 136 Greatest Overweight (x) 12 | . 2 2 5 2 2 4 4 8 9 11 12 9 1 3 1 1 1 Average Overweight (x) 2 | . . 2 2 2 2 2 4 5 2 3 2 1 . . 1 . . Largest Inventory Capacity 25 | 8 25 25 25 25 25 25 25 25 25 25 25 25 25 25 25 25 25 Average Capacity 24 | 7 15 25 25 25 25 25 25 25 21 22 25 25 25 25 25 25 25 Most Carried 25 | 4 24 25 25 25 25 25 24 25 25 22 25 25 25 25 25 25 25 Average Carried 22 | 3 12 24 23 24 24 24 21 22 21 14 23 24 23 23 24 24 24 Final Capacity 25 | 8 25 25 25 25 25 25 25 25 5 25 25 25 25 25 25 25 25 Final Carried 25 | 4 24 24 25 25 25 25 22 25 5 22 25 25 25 25 25 25 23 Class Distribution -------------------- 45% | Mutant 33% | Scavenger-Mutant 11% | Bothacker-Mutant 3% | Hacker-Mutant Dominant Class ---------------- Mutant | -10/Materials Mutant | -10/Mines Mutant | -9/Materials Mutant | -9/Storage Mutant | -9/Garrison Mutant | -9/Recycling Hacker-Mutant | -7/Factory Scavenger-Mutant | -7/Garrison Scavenger-Mutant | -6/Factory Scavenger-Mutant | -6/Waste Scavenger-Mutant | -6/Factory Bothacker-Mutant | -6/Garrison Bothacker-Mutant | -5/Factory Scavenger-Mutant | -5/Extension Scavenger-Mutant | -5/Cetus Scavenger-Mutant | -5/Archives Scavenger-Mutant | -5/Hub_04(d) Resources | -11 -10 -10 -9 -9 -9 -9 -7 -7 -6 -6 -6 -6 -5 -5 -5 -5 -5 ----------- Run | Scr Mat Min Mat Sto Gar Rec Fac Gar Fac Was Fac Gar Fac Ext Cet Arc Hub Matter Collected 10313 | 280 140 100 974 950 199 674 60 684 590 299 528 1014 862 1993 54 536 376 Remotely . | . . . . . . . . . . . . . . . . . . Salvage Created 14063 | 147 490 350 1731 1590 265 549 . 598 1140 1559 791 738 1394 1566 71 509 575 Parts 698 | 16 46 16 110 102 12 30 . 38 65 29 33 34 55 45 . 28 39 Haulers Intercepted 13 | . 2 . 1 . . . . . 1 . 1 . 4 4 . . . Recyclers Shooed 20 | . 1 . 3 1 . 4 . . 2 . 3 . 2 2 . . 2 Parts Field Recycled . | . . . . . . . . . . . . . . . . . . Retrieved Matter . | . . . . . . . . . . . . . . . . . . Parts Self-Destructed . | . . . . . . . . . . . . . . . . . . Prevented . | . . . . . . . . . . . . . . . . . . Kills | -11 -10 -10 -9 -9 -9 -9 -7 -7 -6 -6 -6 -6 -5 -5 -5 -5 -5 ------- Run | Scr Mat Min Mat Sto Gar Rec Fac Gar Fac Was Fac Gar Fac Ext Cet Arc Hub Combat Hostiles Destroyed 230 | . 10 9 38 35 7 12 . 18 18 6 11 18 9 22 2 4 11 Melee 28 | . . . . . . 1 . 4 . 6 5 5 5 1 . . 1 Guns 111 | . 8 7 29 30 4 11 . 7 3 . 3 . . 9 . . . Cannons 36 | . . . . . . . . . 5 . . 7 1 7 2 4 10 AOE 52 | . 2 2 9 5 3 . . 7 9 . 3 6 1 5 . . . Classes Destroyed 22 | 2 6 . 2 3 . 1 . . 2 1 . . 3 2 . . . Worker 19 | . 1 1 2 1 . . . . 6 . 1 . 2 4 . . 1 Builder 10 | . 1 . 3 . . . . . . . 2 . 3 . . . 1 Tunneler 7 | 5 . . . . . . . . 1 . . . . 1 . . . Hauler 13 | . 2 . 1 . . . . . 1 . 1 . 4 4 . . . Recycler 16 | 1 . . 2 1 . 4 . . 1 . 2 . 3 1 . . 1 Mechanic 2 | . . . 1 1 . . . . . . . . . . . . . Operator 10 | . . . . . . . . . . . . . . 1 . 9 . Drone 12 | . . . . . . 12 . . . . . . . . . . . Watcher 15 | . 3 . 4 2 . . . . 2 . . . 2 1 . . 1 Swarmer 48 | . 6 3 12 4 . . . 7 6 . . 6 . . . . 4 Saboteur 1 | . . . . . . . . . . . . . 1 . . . . Grunt 93 | . 4 6 17 18 6 . . 6 3 . 9 7 1 11 2 . 3 Brawler 2 | . . . . 1 . . . . . . . 1 . . . . . Duelist 9 | . . . . 3 1 . . 1 . . 1 2 . 1 . . . Protector 1 | . . . . 1 . . . . . . . . . . . . . Sentry 35 | . . . 9 8 . . . 4 2 . . 3 . 3 . 4 2 Specialist 1 | . . . . . . . . . . . . . 1 . . . . Hunter 8 | . . . . . . . . . 4 . . . . 3 . . 1 Programmer 12 | . . . . . . . . . 3 . 1 . 5 2 . . 1 Heavy 1 | . . . . . . . . . . . . . 1 . . . . Behemoth 2 | . . . . . . . . . . . . . . 2 . . . Compactor 6 | . . . . . . . . . . 6 . . . . . . . Thug 2 | . . 1 . . . . . . . . . . . 1 . . . Best Kill Streak 17 | 3 4 3 5 12 3 3 . 9 17 2 8 4 6 9 2 3 5 Combat Bots Only 11 | . 4 2 4 11 3 2 . 9 6 2 4 4 3 6 2 2 3 Max Kills in Single Turn 6 | 2 2 3 5 6 2 1 . 2 5 1 3 4 2 4 1 1 2 Gunslinging 1 | . . . . 1 . . . . . . . . . . . . . Exploded 5 | . 1 2 4 5 2 . . 2 2 . 2 4 1 2 . . . Melee 1 | . . . . . . 1 . 1 . 1 1 1 1 1 . . 1 Uniques/NPCs Destroyed . | . . . . . . . . . . . . . . . . . . Combat | -11 -10 -10 -9 -9 -9 -9 -7 -7 -6 -6 -6 -6 -5 -5 -5 -5 -5 -------- Run | Scr Mat Min Mat Sto Gar Rec Fac Gar Fac Was Fac Gar Fac Ext Cet Arc Hub Damage Taken 23546 | . 310 336 1978 1650 357 . . 3116 1368 . 2086 2673 3655 2514 156 455 2892 Core 2469 | . 22 26 83 263 14 . . 672 135 . 53 183 415 185 38 75 305 Absorbed by Shields 104 | . . . . . . . . 84 8 . . 12 . . . . . Reduced by Siege Mode 390 | . . . . . . . . . . . 37 88 163 . . . 102 Redirected to Shielding 80 | . . . 12 40 . . . . . . . . . 28 . . . Core Remaining (%) 50 | 100 . 80 . . . 10 . 4 . . . 56 . . . . . Volleys Fired 822 | 8 32 18 130 81 23 55 . 49 37 12 51 65 86 116 7 18 34 Largest 2 | 2 2 2 2 2 2 2 . 2 2 1 2 1 2 2 2 2 2 Hottest 170 | 80 80 40 46 50 50 50 . 51 170 5 97 65 140 114 114 114 114 Shots Fired 1350 | 16 62 35 256 156 40 112 . 77 67 12 56 70 90 191 12 34 64 Gun 874 | 16 60 34 252 152 36 112 . 67 18 . 33 . 8 86 . . . Cannon 315 | . . . . . . . . . 43 . . 52 40 72 12 34 62 Launcher 50 | . 2 1 4 1 4 . . 10 5 . 10 8 2 3 . . . Special 111 | . . . . 3 . . . . 1 12 13 10 40 30 . . 2 Kinetic 978 | . 12 34 252 152 36 112 . 67 18 . 30 . . 158 11 34 62 Thermal 149 | . . . . 3 . . . . 43 . 3 52 48 . . . . Explosive 50 | . 2 1 4 1 4 . . 10 5 . 10 8 2 3 . . . Electromagnetic 65 | 16 48 . . . . . . . . . . . . . 1 . . Robot Hit Streak 24 | 3 10 15 18 18 6 4 . 10 19 13 24 13 15 10 7 9 11 Robot Miss Streak 13 | 1 5 1 4 3 2 13 . 3 10 1 2 2 2 3 1 3 2 Penetration Max 1 | . . . . . . . . . 1 . . . . 1 . . 1 Secondary Targets 16 | . . 1 6 8 . . . . . . . . . 1 . . . Max Gunslinging Chain 1 | . . 1 1 1 . . . . . . . . . 1 . . . Shots Hit Robots 1102 | 10 36 27 172 110 23 43 . 75 50 103 64 57 98 132 9 41 52 Core Hits 569 | 5 24 16 77 59 14 20 . 46 77 15 34 30 44 63 2 22 21 Critical Kills 14 | . 1 . 2 . . . . . 2 . . . 1 1 . . 7 Critical Parts Destroyed 18 | . . 1 . . . . . . . . . . . 7 . . 10 Critical Strikes 70 | 2 3 1 2 . . . . 2 2 2 2 1 6 18 2 6 21 Burn 1 | . . . . . . . . . . . 1 . . . . . . Meltdown 2 | . . . . . . . . . 1 . . . 1 . . . . Destroy 33 | . 1 1 2 . . . . . 1 . . . . 11 . . 17 Blast 14 | . . . . . . . . . . . . . . 4 2 4 4 Corrupt 4 | 2 2 . . . . . . . . . . . . . . . . Sever 14 | . . . . . . . . 2 . 2 1 1 5 3 . . . Impale 2 | . . . . . . . . . . . . . . . . 2 . Melee Attacks 292 | . . . . 5 . 8 . 37 12 92 29 24 31 18 . 24 12 Impact . | . . . . . . . . . . . . . . . . . . Slashing 254 | . . . . 5 . 8 . 37 12 92 29 24 31 16 . . . Piercing 38 | . . . . . . . . . . . . . . 2 . 24 12 Sneak Attacks 121 | . . . . . . 3 . . . 92 3 2 5 4 . 12 . Combat Hostiles 94 | . . . . . . 1 . . . 92 . . . 1 . . . Follow-up Attacks 1 | . . . . . . . . . . . . . 1 . . . . Damage Inflicted 35060 | 243 696 440 3197 2259 725 1091 . 2667 2687 3688 3012 2312 3128 5209 334 1874 1498 Guns 9739 | 143 503 226 2454 1860 353 648 . 854 357 . 564 . 88 1689 . . . Cannons 6864 | . . . . . . . . . 1038 . . 861 1002 1689 334 732 1208 Explosions 8897 | 99 189 195 693 368 372 . . 1065 1198 . 1596 838 1030 1254 . . . Melee 9323 | . . . . . . 414 . 733 94 3688 851 613 945 553 . 1142 290 Ramming 227 | 1 4 19 50 21 . 29 . 15 . . 1 . 63 24 . . . Kinetic 12972 | . 70 226 2454 1860 353 648 . 854 357 . 526 . . 3378 306 732 1208 Thermal 3575 | 99 24 . . 10 . . . . 1038 . 38 861 1090 415 . . . Explosive 7562 | . 165 195 693 368 372 . . 1065 401 . 1596 838 1030 839 . . . Electromagnetic 1401 | 143 433 . . . . . . . 797 . . . . . 28 . . Impact . | . . . . . . . . . . . . . . . . . . Slashing 7778 | . . . . . . 414 . 733 94 3688 851 613 945 440 . . . Piercing 1545 | . . . . . . . . . . . . . . 113 . 1142 290 Highest Corruption 24 | . . . 1 3 3 3 . . 3 21 21 21 21 24 20 20 1 Average Corruption 12 | . . . 1 2 3 3 . . 2 18 21 21 9 23 20 16 1 Corruption Purged 24 | . . . . . . . . . . . . . . 4 . 20 . Corruption Blocked . | . . . . . . . . . . . . . . . . . . Effects 559 | . . . 8 62 5 37 . . 4 45 50 127 34 148 19 20 . Message Errors 138 | . . . 4 14 1 4 . . . 15 12 29 6 40 4 9 . Matter Fused 128 | . . . 2 16 2 10 . . . 11 13 36 7 25 2 4 . Heat Flow Errors 76 | . . . . 8 1 8 . . 3 6 5 17 8 15 3 2 . Energy Discharges 68 | . . . 1 11 1 5 . . 1 7 4 16 1 16 4 1 . Parts Rejected 7 | . . . . . . . . . . . 3 . . 3 1 . . Data Loss (minor) 71 | . . . . 9 . 6 . . . 3 6 14 5 24 1 3 . Data Loss (major) 19 | . . . 1 1 . . . . . 1 3 5 2 3 2 1 . Misfires 18 | . . . . 1 . 2 . . . . 1 6 . 8 . . . Alerts 12 | . . . . . . 2 . . . 2 1 3 1 2 1 . . Misdirections 10 | . . . . . . . . . . . 2 . 4 4 . . . Weapon Failures 12 | . . . . 2 . . . . . . . 1 . 8 1 . . Overload Shots . | . . . . . . . . . . . . . . . . . . Overflow Damage 943 | . . . 23 . . 83 . 51 25 . 141 104 65 155 . 253 43 Projectiles 86 | . . . . . . . . . 25 . . 30 11 . . . 20 Explosions 249 | . . . 23 . . . . 51 . . 46 14 15 100 . . . Melee 608 | . . . . . . 83 . . . . 95 60 39 55 . 253 23 Knockbacks 21 | . . . . . . . . 1 . . . . 1 4 2 . 13 Impact 2 | . . . . . . . . 1 . . . . 1 . . . . Kinetic 17 | . . . . . . . . . . . . . . 3 2 . 12 Secondary 2 | . . . . . . . . . . . . . . 1 . . 1 Self-Inflicted Damage 641 | . . . 92 82 . . . 4 . . 349 114 . . . . . Shots 16 | . . . 2 2 . . . . . . 7 5 . . . . . Rammed 33 | . 2 3 9 8 . 3 . 3 . . 1 . 2 2 . . . Targets Rammed 38 | 1 2 3 9 8 . 3 . 3 . . 1 . 6 2 . . . Kicked 3 | . . . . . . . . . . . . . 3 . . . . Crushed 2 | 1 . . . . . . . . . . . . 1 . . . . Highest Temperature 654 | 54 190 51 379 239 213 318 . 57 225 248 368 239 263 386 167 171 654 Average Temperature 83 | 23 68 24 72 69 74 65 . 16 85 99 97 74 70 101 49 52 284 Received Heat Transfer 6112 | . 87 126 771 699 96 . . 769 216 . 900 948 159 585 90 36 630 Effects 23 | . . . 1 . . 2 . . . . 3 . . 3 . . 14 Shutdowns 4 | . . . . . . . . . . . 1 . . 1 . . 2 Energy Bleed 6 | . . . . . . 1 . . . . . . . 2 . . 3 Interference 2 | . . . . . . . . . . . 2 . . . . . . Matter Decay 1 | . . . . . . . . . . . . . . . . . 1 Short Circuit 2 | . . . . . . . . . . . . . . . . . 2 Damage (minor) 3 | . . . 1 . . 1 . . . . . . . . . . 1 Damage (major) 4 | . . . . . . . . . . . . . . . . . 4 Damage (core) 1 | . . . . . . . . . . . . . . . . . 1 Siege Activations 18 | . . . . . . . . . . . 2 9 1 . . . 6 Total Turns 445 | . . . . . . . . . . . 93 165 32 . . . 155 Longest Duration 53 | . . . . . . . . . . . 53 41 32 . . . 41 Robots Corrupted . | . . . . . . . . . . . . . . . . . . Combat Hostiles . | . . . . . . . . . . . . . . . . . . Parts Fried 12 | 2 4 . . . . . . . 6 . . . . . . . . Impact Corruptions . | . . . . . . . . . . . . . . . . . . Robots Melted 2 | . . . . . . . . . 1 . . . 1 . . . . Combat Hostiles 1 | . . . . . . . . . 1 . . . . . . . . Parts Melted 12 | . . . . . . . . . 7 . 1 . 4 . . . . Heat Transferred 4348 | 100 50 . . 37 . . . . 1221 . 148 973 1569 250 . . . Parts Sabotaged . | . . . . . . . . . . . . . . . . . . Parts Stolen . | . . . . . . . . . . . . . . . . . . Parts Stripped . | . . . . . . . . . . . . . . . . . . Power Chain Reactions 5 | 2 1 . . . . . . . 2 . . . . . . . . Missiles Intercepted . | . . . . . . . . . . . . . . . . . . Alert | -11 -10 -10 -9 -9 -9 -9 -7 -7 -6 -6 -6 -6 -5 -5 -5 -5 -5 ------- Run | Scr Mat Min Mat Sto Gar Rec Fac Gar Fac Was Fac Gar Fac Ext Cet Arc Hub Peak Influence 1039 | 30 201 140 725 603 310 187 959 1039 1037 377 257 587 350 278 266 279 300 Initial 951 | . 19 . 35 306 93 139 951 671 545 362 18 41 308 28 99 105 . Average 282 | 16 54 39 333 288 184 56 957 953 583 206 90 422 146 162 192 152 144 Maximum Alert Level 3 | . 1 . 3 2 1 . 3 3 3 1 1 2 1 1 1 1 1 Low Security (%) 49 | 100 94 100 25 35 57 100 . . . 63 92 16 65 58 58 60 63 Level 1 26 | . 5 . 51 31 42 . . . 36 36 7 22 34 41 41 39 36 Level 2 13 | . . . 10 33 . . . 10 29 . . 61 . . . . . Level 3 10 | . . . 13 . . . 100 89 33 . . . . . . . . Level 4 . | . . . . . . . . . . . . . . . . . . Level 5 . | . . . . . . . . . . . . . . . . . . High Security . | . . . . . . . . . . . . . . . . . . Max Security . | . . . . . . . . . . . . . . . . . . Squads Dispatched 42 | . 2 1 4 9 . . . . 7 . 3 . 5 4 . . 7 Investigation 6 | . . . 2 1 . . . . 2 . . . . 1 . . . Extermination 5 | . . . . . . . . . 2 . 1 . 1 . . . 1 Reinforcement 20 | . 2 . 1 2 . . . . 3 . 2 . 4 3 . . 3 Assault 5 | . . 1 1 3 . . . . . . . . . . . . . Garrison 6 | . . . . 3 . . . . . . . . . . . . 3 Intercept . | . . . . . . . . . . . . . . . . . . Searches Triggered 1 | . . . . . . . . . 1 . . . . . . . . Construction Impeded 7 | . . . 1 . . . . . . . 1 . 1 2 . . 2 Haulers Reinforced 2 | . . . . . . . . . . . 1 . 1 . . . . Active Scanning Responses . | . . . . . . . . . . . . . . . . . . Cargo Convoy Interrupts 1 | . . . . . . . . . . . . . 1 . . . . Alert ID Control Effect 16 | . . . . . . . . . . . . 4 12 . . . . Stealth | -11 -10 -10 -9 -9 -9 -9 -7 -7 -6 -6 -6 -6 -5 -5 -5 -5 -5 --------- Run | Scr Mat Min Mat Sto Gar Rec Fac Gar Fac Was Fac Gar Fac Ext Cet Arc Hub Distress Signals 16 | . . . 2 3 . . . . 2 . . . . 5 2 . 2 Communications Jammed . | . . . . . . . . . . . . . . . . . . Distress Signals . | . . . . . . . . . . . . . . . . . . Times Spotted 433 | . 19 12 64 49 7 55 . 18 38 4 15 29 34 39 12 19 19 Peak Tracking Total 12 | . 4 4 4 6 3 4 . 4 5 2 6 6 12 6 7 1 8 Tactical Retreats 16 | . 1 1 2 . . . . 1 5 . . 2 . 2 1 . 1 Traps | -11 -10 -10 -9 -9 -9 -9 -7 -7 -6 -6 -6 -6 -5 -5 -5 -5 -5 ------- Run | Scr Mat Min Mat Sto Gar Rec Fac Gar Fac Was Fac Gar Fac Ext Cet Arc Hub Traps Triggered 25 | . . . 2 1 2 . . 7 3 . . 8 1 1 . . . Indirectly 1 | . . . . . . . . . 1 . . . . . . . . Trap Hack Attempts . | . . . . . . . . . . . . . . . . . . Triggered . | . . . . . . . . . . . . . . . . . . Disarmed 3 | . 3 . . . . . . . . . . . . . . . . Reprogrammed 3 | . . . . 3 . . . . . . . . . . . . . Reused 1 | . . . . 1 . . . . . . . . . . . . . Traps Extracted . | . . . . . . . . . . . . . . . . . . Installed . | . . . . . . . . . . . . . . . . . . Triggered 1 | . . . . 1 . . . . . . . . . . . . . Machines | -11 -10 -10 -9 -9 -9 -9 -7 -7 -6 -6 -6 -6 -5 -5 -5 -5 -5 ---------- Run | Scr Mat Min Mat Sto Gar Rec Fac Gar Fac Was Fac Gar Fac Ext Cet Arc Hub Machines Disabled 57 | . 3 1 . 5 . 1 . 2 22 . 3 6 2 3 3 2 4 Max in Single Turn 7 | . 2 1 . 2 . 1 . 1 7 . 3 1 . 1 . 1 1 Garrison Access 1 | . . . . . . . . . . . . . 1 . . . . Garrison Relay 6 | . . . . . . . . 2 . . . 4 . . . . . Energy Cycler 1 | . . . . . . . . . . . . . . 1 . . . Machines Sabotaged . | . . . . . . . . . . . . . . . . . . Garrisons Compromised . | . . . . . . . . . . . . . . . . . . Overloaded Fab Kills . | . . . . . . . . . . . . . . . . . . Hacking | -11 -10 -10 -9 -9 -9 -9 -7 -7 -6 -6 -6 -6 -5 -5 -5 -5 -5 --------- Run | Scr Mat Min Mat Sto Gar Rec Fac Gar Fac Was Fac Gar Fac Ext Cet Arc Hub Machines Accessed 83 | . 7 2 15 11 . 12 3 . 8 . 3 . 5 12 3 1 1 Terminals 55 | . 6 1 12 8 . 6 2 . 3 . 1 . 1 11 3 . 1 Fabricators 3 | . . . . . . . . . 2 . . . 1 . . . . Repair Stations 1 | . . . . . . . . . 1 . . . . . . . . Recycling Units 14 | . 1 . 2 2 . 6 . . 1 . . . 1 1 . . . Scanalyzers 3 | . . . 1 . . . . . . . 1 . 1 . . . . Garrison Access 5 | . . . . 1 . . 1 . 1 . 1 . 1 . . . . Total Hacks 195 | . 24 3 38 31 . 23 7 . 13 . 6 . 13 27 7 1 2 Successful 111 | . 15 1 21 17 . 13 2 . 8 . 2 . 9 17 4 1 1 Failed 82 | . 8 2 16 14 . 10 5 . 5 . 4 . 4 10 3 . 1 Catastrophic 13 | . . . 3 1 . 1 2 . 1 . 3 . . 2 . . . Database Lockouts 2 | . 1 . 1 . . . . . . . . . . . . . . Manual 112 | . 20 2 29 15 . 18 5 . 4 . 2 . 4 13 . . . Terminals 140 | . 22 2 25 26 . 17 6 . 5 . 2 . 1 25 7 . 2 Fabricators 5 | . . . . . . . . . 3 . . . 2 . . . . Repair Stations 1 | . . . . . . . . . 1 . . . . . . . . Recycling Units 30 | . 2 . 11 4 . 6 . . 2 . . . 3 2 . . . Scanalyzers 9 | . . . 2 . . . . . . . 2 . 5 . . . . Garrison Access 8 | . . . . 1 . . 1 . 2 . 2 . 2 . . . . Terminal Hacks 60 | . 11 1 8 12 . 6 1 . 2 . . . 1 12 4 1 1 Record 4 | . . . . . . . . . . . . . . . 3 1 . Part Schematic 5 | . . . . . . . . . . . . . . 5 . . . Robot Analysis 4 | . 2 . 1 . . 1 . . . . . . . . . . . Prototype ID Bank 9 | . 4 . 1 1 . 3 . . . . . . . . . . . Open Door 8 | . . 1 . 2 . . . . . . . . . 4 1 . . Level Access Points 1 | . . . . . . . . . . . . . . . . . 1 Branch Access Points 1 | . . . . 1 . . . . . . . . . . . . . Terminal Index 1 | . . . . . . . 1 . . . . . . . . . . Alert Level 2 | . . . 1 1 . . . . . . . . . . . . . Unreport Threat 9 | . 1 . 3 4 . 1 . . . . . . . . . . . Locate Traps 7 | . 2 . 1 1 . . . . . . . . 1 2 . . . Disarm Traps 1 | . 1 . . . . . . . . . . . . . . . . Reprogram Traps 1 | . . . . 1 . . . . . . . . . . . . . Hauler Manifests 6 | . 1 . 1 1 . 1 . . 1 . . . . 1 . . . Zone Layout 1 | . . . . . . . . . 1 . . . . . . . . Fabricator Hacks 2 | . . . . . . . . . 1 . . . 1 . . . . Network Status 2 | . . . . . . . . . 1 . . . 1 . . . . Repair Station Hacks 1 | . . . . . . . . . 1 . . . . . . . . Refit 1 | . . . . . . . . . 1 . . . . . . . . Recycling Unit Hacks 3 | . . . 2 . . . . . 1 . . . . . . . . Report Inventory 1 | . . . 1 . . . . . . . . . . . . . . Retrieve Components 2 | . . . 1 . . . . . 1 . . . . . . . . Scanalyzer 6 | . . . 2 . . . . . . . . . 4 . . . . Insert Component 3 | . . . 1 . . . . . . . . . 2 . . . . Analyze 3 | . . . 1 . . . . . . . . . 2 . . . . Garrison Access Hacks 7 | . . . . 1 . . 1 . 1 . 2 . 2 . . . . Unlock Access 3 | . . . . 1 . . 1 . . . 1 . . . . . . Seal Access 1 | . . . . . . . . . . . . . 1 . . . . Coupler Status 3 | . . . . . . . . . 1 . 1 . 1 . . . . Unauthorized Hacks 32 | . 4 . 9 4 . 7 . . 2 . . . 1 5 . . . Terminals 16 | . 3 . 4 3 . 1 . . 1 . . . . 4 . . . Botnet 12 | . 2 . 3 2 . 1 . . 1 . . . . 3 . . . Operators 4 | . 1 . 1 1 . . . . . . . . . 1 . . . Fabricators 1 | . . . . . . . . . . . . . 1 . . . . Liberate 1 | . . . . . . . . . . . . . 1 . . . . Repair Stations . | . . . . . . . . . . . . . . . . . . Recycling Units 14 | . 1 . 5 1 . 6 . . . . . . . 1 . . . Reject 5 | . 1 . 2 1 . . . . . . . . . 1 . . . Mask 2 | . . . 2 . . . . . . . . . . . . . . Tunnel 7 | . . . 1 . . 6 . . . . . . . . . . . Scanalyzers . | . . . . . . . . . . . . . . . . . . Garrison Access 1 | . . . . . . . . . 1 . . . . . . . . Eject 1 | . . . . . . . . . 1 . . . . . . . . Data Cores Recovered 1 | . . . . . . . . . . . . . . 1 . . . Used . | . . . . . . . . . . . . . . . . . . Hacking Detections 58 | . 7 1 11 9 . 5 2 . 6 . 3 . 2 9 2 . 1 Full Trace Events 1 | . . . . . . . . . . . . . . 1 . . . Feedback Events . | . . . . . . . . . . . . . . . . . . Feedback Blocked . | . . . . . . . . . . . . . . . . . . Robot Schematics Acquired . | . . . . . . . . . . . . . . . . . . Robots Built . | . . . . . . . . . . . . . . . . . . Authchips . | . . . . . . . . . . . . . . . . . . Time . | . . . . . . . . . . . . . . . . . . Total Robot Build Rating . | . . . . . . . . . . . . . . . . . . Part Schematics Acquired 8 | . . . 1 . . . . . . . . . 2 5 . . . Parts Built . | . . . . . . . . . . . . . . . . . . Authchips . | . . . . . . . . . . . . . . . . . . Time . | . . . . . . . . . . . . . . . . . . Total Part Build Rating . | . . . . . . . . . . . . . . . . . . Parts Repaired . | . . . . . . . . . . . . . . . . . . Time . | . . . . . . . . . . . . . . . . . . Parts Recycled . | . . . . . . . . . . . . . . . . . . Recycled Matter . | . . . . . . . . . . . . . . . . . . Retrieved Matter . | . . . . . . . . . . . . . . . . . . Retrieved Components 12 | . . . 10 . . . . . 2 . . . . . . . . Parts Scanalyzed 3 | . . . 1 . . . . . . . . . 2 . . . . Part Schematics Acquired 3 | . . . 1 . . . . . . . . . 2 . . . . Parts Damaged . | . . . . . . . . . . . . . . . . . . Bothacking | -11 -10 -10 -9 -9 -9 -9 -7 -7 -6 -6 -6 -6 -5 -5 -5 -5 -5 ------------ Run | Scr Mat Min Mat Sto Gar Rec Fac Gar Fac Was Fac Gar Fac Ext Cet Arc Hub Used RIF Installer 3 | . . . . . 1 . . 1 . . . 1 . . . . . Threat Obfuscator 1 | . . . . . . . . . . . . 1 . . . . . Alert ID Control 1 | . . . . . . . . 1 . . . . . . . . . Robots Hacked 48 | . . . . . . . . . 1 6 4 6 20 10 . . 1 Non-combat 25 | . . . . . . . . . 1 . 4 . 12 7 . . 1 Combat 23 | . . . . . . . . . . 6 . 6 8 3 . . . Robot Hacks Applied 60 | . . . . . . . . . 1 10 5 6 23 14 . . 1 parse_system 1 | . . . . . . . . . . 1 . . . . . . . no_distress 11 | . . . . . . . . . . . . . 6 4 . . 1 find_chute 2 | . . . . . . . . . 1 . . . 1 . . . . ignore_repairs 4 | . . . . . . . . . . . . . . 4 . . . map_earth 1 | . . . . . . . . . . . 1 . . . . . . find_recycling 2 | . . . . . . . . . . . 1 . 1 . . . . ignore_parts 8 | . . . . . . . . . . . . . 5 3 . . . purge_threat 1 | . . . . . . . . . . . . . 1 . . . . map_route 3 | . . . . . . . . . . . 2 . 1 . . . . mark_security 1 | . . . . . . . . . . . 1 . . . . . . ignore_targets 6 | . . . . . . . . . . 6 . . . . . . . disrupt_area 1 | . . . . . . . . . . . . . 1 . . . . overload_power 3 | . . . . . . . . . . 3 . . . . . . . amplify_resonance 3 | . . . . . . . . . . . . 3 . . . . . overwrite_iff 2 | . . . . . . . . . . . . 1 1 . . . . streamctrl_high 1 | . . . . . . . . . . . . . . 1 . . . formatsys_high 10 | . . . . . . . . . . . . 2 6 2 . . . Relay Couplers Released 31 | . . . . . . . . 8 4 . . 19 . . . . . Ejected 4 | . . . . . . . . . 4 . . . . . . . . Machine Destruction 27 | . . . . . . . . 8 . . . 19 . . . . . Attached 17 | . . . . . . . . . 3 . . 6 5 3 . . . Fabnet Peak Effective % . | . . . . . . . . . . . . . . . . . . Robots Rewired 16 | . . . . . . . . . . . . . 1 15 . . . Allies Hacked 2 | . . . . . . . . . . . . . 1 1 . . . Hacks Repelled . | . . . . . . . . . . . . . . . . . . Allies | -11 -10 -10 -9 -9 -9 -9 -7 -7 -6 -6 -6 -6 -5 -5 -5 -5 -5 -------- Run | Scr Mat Min Mat Sto Gar Rec Fac Gar Fac Was Fac Gar Fac Ext Cet Arc Hub Total Allies 35 | . . 2 . 2 . . . . . . . 3 8 20 . . . Largest Group 10 | . . 1 . 2 . . . . . . . 1 5 10 10 . . Highest-Rated Group 312 | . . 31 . 62 . . . . . . . 32 198 312 312 . . Highest-Rated Ally 49 | . . 31 . 31 . . . . . . . 32 49 49 39 . . Total Orders 19 | . . . . 3 . . . . 4 . . . 5 4 . . 3 STAY 4 | . . . . . . . . . . . . . 3 1 . . . FOLLOW 3 | . . . . . . . . . . . . . 2 1 . . . EXPLORE 8 | . . . . 2 . . . . 4 . . . . 1 . . 1 RETURN 4 | . . . . 1 . . . . . . . . . 1 . . 2 Ally Attacks 297 | . . 25 . 16 . . . . . . . 19 66 97 74 . . Total Damage 7013 | . . 425 . 145 . . . . . . . 693 2120 2271 1359 . . Kills 47 | . . 2 . 1 . . . . . . . 4 15 15 10 . . Allies Corrupted 1 | . . . . . . . . . . . . . 1 . . . . Allies Melted 4 | . . 1 . . . . . . . . . . . 3 . . . Intel | -11 -10 -10 -9 -9 -9 -9 -7 -7 -6 -6 -6 -6 -5 -5 -5 -5 -5 ------- Run | Scr Mat Min Mat Sto Gar Rec Fac Gar Fac Was Fac Gar Fac Ext Cet Arc Hub Robot Analysis Total 4 | . 2 . 1 . . 1 . . . . . . . . . . . Derelict Logs Recovered 3 | . . 3 . . . . . . . . . . . . . . . Drone Launches 14 | . . . . 4 . . . . 4 . . . . 2 . . 4 Drone Recoveries 13 | . . . . 4 . . . . 3 . . . . 2 . . 4 Exploration | -11 -10 -10 -9 -9 -9 -9 -7 -7 -6 -6 -6 -6 -5 -5 -5 -5 -5 ------------- Run | Scr Mat Min Mat Sto Gar Rec Fac Gar Fac Was Fac Gar Fac Ext Cet Arc Hub Turns Passed 29126 | 223 1531 2401 5196 3219 464 2015 134 1936 1353 1107 1187 2880 1154 2811 340 843 332 Spaces Moved 10363 | 114 738 725 1441 852 123 742 85 737 1047 390 369 1026 457 1054 125 287 51 Core 5 | 5 . . . . . . . . . . . . . . . . . Treads 7465 | 109 738 725 1441 852 123 408 . 224 . 166 306 946 292 672 125 287 51 Legs 547 | . . . . . . . . . . . . . 165 382 . . . Wheels 1740 | . . . . . . 334 85 513 556 109 63 80 . . . . . Hover . | . . . . . . . . . . . . . . . . . . Flight 606 | . . . . . . . . . 491 115 . . . . . . . Fastest Speed 29 | 50 160 320 320 320 320 150 150 180 29 29 160 225 160 160 240 160 160 Average Speed 235 | 155 182 320 320 320 320 243 150 218 95 215 244 238 170 211 240 239 177 Slowest Speed 560 | 160 320 320 560 320 320 320 150 240 225 320 270 240 190 330 240 240 240 Overloaded Moves . | . . . . . . . . . . . . . . . . . . Propulsion Burnouts . | . . . . . . . . . . . . . . . . . . Robots Hopped 3 | . . . . . . . . . 3 . . . . . . . . Cave-ins Triggered . | . . . . . . . . . . . . . . . . . . Exploration Rate (%) 60 | 6 95 98 97 97 33 99 4 52 28 99 13 89 15 88 73 98 8 Regions Visited 17 Branch Regions 7 Pre-discovered Areas 7 | . . . 1 . . 6 . . . . . . . . . . . Known Exits Taken 9 | . . 1 1 1 . . 1 . . . 1 . 1 1 1 1 . Unknown Exits Taken 3 | 1 1 . . . . 1 . . . . . . . . . . . Scrap Searched 3 | . . 3 . . . . . . . . . . . . . . . Spaces Dug 34 | . . . . 5 . . . 1 10 . 2 12 . 3 . 1 . Terrain Destroyed 485 | 13 7 9 39 16 21 . . 30 33 . 58 53 22 150 1 15 18 Melee 18 | . . . . 1 . . . 1 10 . 2 . . 3 . 1 . Projectile 127 | . . . . . . . . . 5 . . . 1 89 1 14 17 AOE 339 | 13 7 9 39 15 21 . . 29 18 . 56 53 21 58 . . . Terrain Rammed . | . . . . . . . . . . . . . . . . . . Walls Destroyed . | . . . . . . . . . . . . . . . . . . Machines Disabled . | . . . . . . . . . . . . . . . . . . Actions | -11 -10 -10 -9 -9 -9 -9 -7 -7 -6 -6 -6 -6 -5 -5 -5 -5 -5 --------- Run | Scr Mat Min Mat Sto Gar Rec Fac Gar Fac Was Fac Gar Fac Ext Cet Arc Hub Total 13435 | 140 875 772 1767 1178 161 845 91 928 1314 514 550 1365 709 1476 156 385 209 Wait 829 | 6 43 16 95 165 2 15 . 15 70 3 42 103 47 107 11 6 83 Move 10343 | 113 737 724 1440 852 122 741 84 736 1041 389 369 1025 456 1053 124 286 51 Hop 3 | . . . . . . . . . 3 . . . . . . . . Pick Up 258 | 3 32 3 30 21 2 5 1 21 20 3 9 42 15 29 3 15 4 Fast Attach 161 | 7 3 1 3 8 1 4 . 11 23 4 15 14 21 29 2 8 7 Attach 146 | . 2 2 20 12 1 2 4 13 22 . 4 18 17 17 . 6 6 Detach 59 | 1 3 . 4 . . 1 . . 12 8 6 5 9 6 . 2 2 Swap 175 | 1 6 4 13 10 5 3 2 14 25 3 14 18 11 34 4 2 6 Drop 238 | . 15 1 23 15 1 8 . 8 49 . 10 39 12 30 5 18 4 Fire 822 | 8 32 18 130 81 23 55 . 49 37 12 51 65 86 116 7 18 34 Melee 290 | . . . . 5 . 8 . 37 12 92 29 24 29 18 . 24 12 Ram 1 | . . . . . . . . 1 . . . . . . . . . Kick 3 | . . . . . . . . . . . . . 3 . . . . Crush 34 | 1 2 3 9 8 . 3 . 2 . . 1 . 3 2 . . . Escape Stasis 42 | . . . . . 4 . . 21 . . . 12 . 5 . . . Rewire 30 | . . . . . . . . . . . . . . 30 . . . Trap . | . . . . . . . . . . . . . . . . . . Miscellaneous 1 | . . . . 1 . . . . . . . . . . . . . Route ------- -11/Scrapyard -10/Materials (discovered 5 exits: *Mat x3 / *Min x2) -10/Mines (discovered 2 exits: *Mat x2) -9/Materials (discovered 6 exits: *Mat x3 / *Min / *Sto x2) -9/Storage (discovered 3 exits: *Mat / *Rec / Gar) -9/Garrison -9/Recycling -7/Factory -7/Garrison (discovered 2 exits: *Fac x2) -6/Factory -6/Waste -6/Factory -6/Garrison (discovered 3 exits: *Fac x3) -5/Factory -5/Extension (discovered 3 exits: *Fac x2 / *Cet) -5/Cetus -5/Archives (discovered 3 exits: *Fac / *Hub x2) -5/Hub_04(d) (discovered 4 exits: Fac x4) History --------- Turn | Location | Event 5 | -11/Scrapyard | Discovered new exit (range 15) 224 | -11/Scrapyard | Entered Materials 317 | -10/Materials | Build established: Mutant 551 | -10/Materials | Discovered new exit (range 15) 708 | -10/Materials | Discovered new exit (range 16) 909 | -10/Materials | Discovered new exit (range 10) 945 | -10/Materials | Identified exit to Materials 1188 | -10/Materials | Discovered exit to Materials (range 8) 1263 | -10/Materials | Central database locked down 1281 | -10/Materials | Discovered new exit (range 15) 1755 | -10/Materials | Entered Mines 1773 | -10/Mines | Met a Derelict bent on vengeance 2140 | -10/Mines | Discovered exit to Materials (range 4) 2169 | -10/Mines | Received a Mining Laser from a helpful Derelict 2627 | -10/Mines | Received a Rocket Launcher from a helpful Derelict 3144 | -10/Mines | Discovered exit to Materials (range 5) 3263 | -10/Mines | Learned location of 1 exit from Materials 3321 | -10/Mines | Met a Derelict who couldn't figure out how to use a Trap Extractor 3465 | -10/Mines | Learned location of 1 exit from Materials 3479 | -10/Mines | Met a Derelict testing a Signal Generator 4002 | -10/Mines | Learned 4 Materials zone layouts 4156 | -10/Mines | Entered Materials 4156 | -9/Materials | Evolved 2 slots: Utility x2 4157 | -9/Materials | Identified exit to Materials 4157 | -9/Materials | Identified exit to Mines 4158 | -9/Materials | Identified exit to Storage 4410 | -9/Materials | Lost 3 parts (1p1n1w) 4694 | -9/Materials | Discovered exit to Storage (range 5) 5531 | -9/Materials | Discovered exit to Materials (range 7) 6196 | -9/Materials | Lost 3 parts (1n1u1w) 6204 | -9/Materials | Discovered exit to Materials (range 16) 7391 | -9/Materials | Central database locked down 8530 | -9/Materials | Build established: Scavenger-Mutant 8556 | -9/Materials | First assault squad dispatched 9352 | -9/Materials | Entered Storage 10051 | -9/Storage | Used back door to open Recycling access 10051 | -9/Storage | Discovered new exit (range 3) 10160 | -9/Storage | Garrison activated, responded to threat 10552 | -9/Storage | First assault squad dispatched 10713 | -9/Storage | Build established: Mutant 10959 | -9/Storage | Met a pair of Derelict thieves 11013 | -9/Storage | Core integrity fell below 50% 11064 | -9/Storage | Core integrity fell below 20% 11092 | -9/Storage | Destroyed 11 combat bots 11098 | -9/Storage | Lost 7 parts (1p2n3u1w) 11335 | -9/Storage | Discovered exit to Materials (range 6) 12053 | -9/Storage | Identified exit to Recycling 12571 | -9/Storage | Identified exit to Garrison 12571 | -9/Storage | Entered Garrison 12587 | -9/Garrison | Installed Relay Interface Framework 12823 | -9/Garrison | Triggered checkpoint 12990 | -9/Garrison | Discovered exit to Recycling (range 15) 13035 | -9/Garrison | Entered Recycling 13064 | -9/Recycling | Spotter reported a threat 13117 | -9/Recycling | Spotter reported a threat 13170 | -9/Recycling | Spotter reported a threat 13194 | -9/Recycling | Spotter reported a threat 13197 | -9/Recycling | Spotter reported a threat 13247 | -9/Recycling | Spotter reported a threat 13264 | -9/Recycling | Spotter reported a threat 13265 | -9/Recycling | Spotter reported a threat 13328 | -9/Recycling | Spotter reported a threat 13389 | -9/Recycling | Spotter reported a threat 13412 | -9/Recycling | Discovered new exit (range 15) 13441 | -9/Recycling | Spotter reported a threat 13479 | -9/Recycling | Spotter reported a threat 13519 | -9/Recycling | Spotter reported a threat 13547 | -9/Recycling | Spotter reported a threat 13572 | -9/Recycling | Spotter reported a threat 13600 | -9/Recycling | Spotter reported a threat 13635 | -9/Recycling | Spotter reported a threat 13661 | -9/Recycling | Spotter reported a threat 13668 | -9/Recycling | Spotter reported a threat 13688 | -9/Recycling | Spotter reported a threat 13697 | -9/Recycling | Spotter reported a threat 13714 | -9/Recycling | Spotter reported a threat 13721 | -9/Recycling | Spotter reported a threat 13726 | -9/Recycling | Spotter reported a threat 13750 | -9/Recycling | Spotter reported a threat 13775 | -9/Recycling | Spotter reported a threat 13779 | -9/Recycling | Spotter reported a threat 13910 | -9/Recycling | Spotter reported a threat 13942 | -9/Recycling | Spotter reported a threat 13994 | -9/Recycling | Spotter reported a threat 14038 | -9/Recycling | Spotter reported a threat 14045 | -9/Recycling | Spotter reported a threat 14176 | -9/Recycling | Spotter reported a threat 14202 | -9/Recycling | Spotter reported a threat 14234 | -9/Recycling | Spotter reported a threat 14255 | -9/Recycling | Spotter reported a threat 14312 | -9/Recycling | Spotter reported a threat 14343 | -9/Recycling | Spotter reported a threat 14365 | -9/Recycling | Spotter reported a threat 14396 | -9/Recycling | Spotter reported a threat 14467 | -9/Recycling | Spotter reported a threat 14506 | -9/Recycling | Spotter reported a threat 14517 | -9/Recycling | Spotter reported a threat 14550 | -9/Recycling | Spotter reported a threat 14581 | -9/Recycling | Spotter reported a threat 14594 | -9/Recycling | Spotter reported a threat 14653 | -9/Recycling | Spotter reported a threat 14698 | -9/Recycling | Spotter reported a threat 14709 | -9/Recycling | Spotter reported a threat 14710 | -9/Recycling | Spotter reported a threat 14763 | -9/Recycling | Spotter reported a threat 14849 | -9/Recycling | Spotter reported a threat 14886 | -9/Recycling | Spotter reported a threat 14919 | -9/Recycling | Spotter reported a threat 14939 | -9/Recycling | Spotter reported a threat 14959 | -9/Recycling | Spotter reported a threat 15012 | -9/Recycling | Spotter reported a threat 15050 | -9/Recycling | Entered Factory 15050 | -7/Factory | Evolved 4 slots: Propulsion x1, Utility x3 15168 | -7/Factory | Identified exit to Garrison 15184 | -7/Factory | Entered Garrison 15322 | -7/Garrison | Triggered checkpoint 15376 | -7/Garrison | Build established: Hacker-Mutant 15379 | -7/Garrison | Garrison Relay disabled 15470 | -7/Garrison | Triggered checkpoint 15562 | -7/Garrison | Destroyed 9 combat bots 15700 | -7/Garrison | Discovered new exit (range 9) 15838 | -7/Garrison | Triggered checkpoint 15919 | -7/Garrison | Core integrity fell below 50% 15936 | -7/Garrison | Core integrity fell below 20% 15991 | -7/Garrison | Lost 14 parts (1p3n7u3w) 16087 | -7/Garrison | Garrison Relay disabled 16288 | -7/Garrison | Build established: Scavenger-Mutant 16570 | -7/Garrison | Discovered new exit (range 10) 16608 | -7/Garrison | Expanded RIF knowledge: Alert ID Control 17120 | -7/Garrison | Entered Factory 17120 | -6/Factory | Evolved 2 slots: Utility x2 17470 | -6/Factory | Search patrols dispatched 17842 | -6/Factory | Lost 4 parts (2n2u) 18332 | -6/Factory | Discovered new exit (range 19) 18473 | -6/Factory | Manually triggered Chute Trap 18473 | -6/Factory | Sucked down chute 18473 | -6/Factory | Entered Waste 18481 | -6/Waste | Spotted C-40 Crusher 18488 | -6/Waste | EMP discharged 18488 | -6/Waste | System corruption reached 10% 18492 | -6/Waste | Destroyed C-40 Crusher 18499 | -6/Waste | Spotted C-40 Crusher 18502 | -6/Waste | Spotted C-40 Crusher 18506 | -6/Waste | Spotted C-40 Crusher 18509 | -6/Waste | Discovered new exit (range 20) 18510 | -6/Waste | Spotted C-40 Crusher 18510 | -6/Waste | Spotted C-40 Crusher 18587 | -6/Waste | Destroyed C-40 Crusher 18588 | -6/Waste | EMP discharged 18595 | -6/Waste | Found Damper Plating 18688 | -6/Waste | EMP discharged 18788 | -6/Waste | EMP discharged 18888 | -6/Waste | EMP discharged 18899 | -6/Waste | Identified exit to Factory 18901 | -6/Waste | Build established: Mutant 18957 | -6/Waste | Destroyed C-40 Crusher 18965 | -6/Waste | Found Damper Plating 18988 | -6/Waste | EMP discharged 18989 | -6/Waste | Destroyed C-40 Crusher 19007 | -6/Waste | Found Damper Plating 19088 | -6/Waste | EMP discharged 19171 | -6/Waste | Destroyed C-40 Crusher 19186 | -6/Waste | Destroyed C-40 Crusher 19188 | -6/Waste | EMP discharged 19263 | -6/Waste | Build established: Scavenger-Mutant 19288 | -6/Waste | EMP discharged 19388 | -6/Waste | EMP discharged 19488 | -6/Waste | EMP discharged 19580 | -6/Waste | Entered Factory 19823 | -6/Factory | Found Prototype Launcher 19823 | -6/Factory | Identified Scatter Rocket Array 20767 | -6/Factory | Identified exit to Garrison 20767 | -6/Factory | Entered Garrison 21024 | -6/Garrison | Triggered checkpoint 21133 | -6/Garrison | Garrison Relay disabled 21313 | -6/Garrison | Spotted B-75 Beast 21324 | -6/Garrison | Triggered checkpoint 21368 | -6/Garrison | Allies destroyed B-75 Beast 21442 | -6/Garrison | Build established: Bothacker-Mutant 21490 | -6/Garrison | Triggered checkpoint 21534 | -6/Garrison | Lost 3 parts (1p2u) 21551 | -6/Garrison | Garrison Relay disabled 21712 | -6/Garrison | Discovered new exit (range 17) 21861 | -6/Garrison | Triggered checkpoint 22006 | -6/Garrison | Triggered checkpoint 22057 | -6/Garrison | Garrison Relay disabled 22122 | -6/Garrison | Discovered new exit (range 12) 22146 | -6/Garrison | Identified exit to Factory 22160 | -6/Garrison | Expanded RIF knowledge: Threat Obfuscation 22272 | -6/Garrison | Triggered checkpoint 22414 | -6/Garrison | Discovered exit to Factory (range 17) 22430 | -6/Garrison | Triggered checkpoint 22471 | -6/Garrison | Garrison Relay disabled 23647 | -6/Garrison | Entered Factory 23647 | -5/Factory | Accompanied by 1 ally 23647 | -5/Factory | Evolved 2 slots: Propulsion x1, Utility x1 23833 | -5/Factory | Discovered new exit (range 60) 24255 | -5/Factory | Cargo convoy interrupted 24306 | -5/Factory | System corruption reached 10% 24337 | -5/Factory | Lost 5 parts (2n2u1w) 24551 | -5/Factory | Lost 7 parts (1p1n3u2w) 24791 | -5/Factory | Identified exit to Extension 24801 | -5/Factory | Entered Extension 24827 | -5/Extension | Lost 3 parts (1n2u) 25195 | -5/Extension | Rescued a captive Derelict 25253 | -5/Extension | Found Hvy. Insulated Plating 25301 | -5/Extension | Energy Cycler disabled 25302 | -5/Extension | Rescued a captive Derelict 25302 | -5/Extension | Rescued a captive Derelict 25302 | -5/Extension | Rescued a captive Derelict 25303 | -5/Extension | Rescued a captive Derelict 25303 | -5/Extension | Rescued a captive Derelict 25304 | -5/Extension | Rescued a captive Derelict 25304 | -5/Extension | Rescued a captive Derelict 25306 | -5/Extension | Rescued a captive Derelict 25308 | -5/Extension | Rescued a captive Derelict 25308 | -5/Extension | Rescued a captive Derelict 25315 | -5/Extension | Rescued a captive Derelict 25563 | -5/Extension | Spotted B-75 Beast 25599 | -5/Extension | Extracted ID and sensor layout for unrecognized location from A7's data core 25615 | -5/Extension | Core integrity fell below 50% 25647 | -5/Extension | Lost 4 parts (1n3u) 25698 | -5/Extension | Destroyed B-75 Beast 25745 | -5/Extension | Spotted B-75 Beast 25781 | -5/Extension | Lost 3 parts (2n1w) 25869 | -5/Extension | Discovered new exit (range 18) 25871 | -5/Extension | Build established: Scavenger-Skirmisher 25881 | -5/Extension | Destroyed B-75 Beast 25901 | -5/Extension | Disrupted transfer network 26023 | -5/Extension | Lost 6 parts (1p3n1u1w) 26275 | -5/Extension | Build established: Scavenger-Mutant 26304 | -5/Extension | Discovered new exit (range 20) 26304 | -5/Extension | Discovered new exit (range 20) 26347 | -5/Extension | Identified exit to Cetus 27602 | -5/Extension | Identified exit to Factory 27612 | -5/Extension | Entered Cetus 27612 | -5/Cetus | Accompanied by 10 allies 27626 | -5/Cetus | Spotted Cetus Guard 27628 | -5/Cetus | Spotted Cetus Guard 27628 | -5/Cetus | Spotted Cetus Guard 27635 | -5/Cetus | Spotted Cetus Guard 27640 | -5/Cetus | Allies destroyed Cetus Guard 27641 | -5/Cetus | Allies destroyed Cetus Guard 27648 | -5/Cetus | Allies destroyed Cetus Guard 27651 | -5/Cetus | Allies destroyed Cetus Guard 27808 | -5/Cetus | Cetus Manufacturing Module disabled 27872 | -5/Cetus | Discovered new exit (range 20) 27942 | -5/Cetus | Identified exit to Archives 27952 | -5/Cetus | Entered Archives 28059 | -5/Archives | Discovered new exit (range 20) 28160 | -5/Archives | Discovered exit to Factory (range 14) 28245 | -5/Archives | Discovered new exit (range 17) 28755 | -5/Archives | Unable to access archive contents 28793 | -5/Archives | Identified exit to Hub_04(d) 28795 | -5/Archives | Entered Hub_04(d) 28851 | -5/Hub_04(d) | Garrison activated, responded to threat 28863 | -5/Hub_04(d) | Core integrity fell below 20% 28946 | -5/Hub_04(d) | Lost 6 parts (1p2n3u) 29127 | -5/Hub_04(d) | Destroyed by G-50 Soldier with Heavy Laser Last Messages --------------- 29108_ Archive Unit disabled. 29108_ HV Slug penetrates Archive Unit. 29109_ K-01 Serf collects debris. 29109_ Penetrated by Slug. 29109_ Imp. Medium Armor Plating destroyed. 29110_ Critical hit (Burn: +37). 29111_ K-01 Serf collects debris. 29113_ R-10 Processor collects Structural Scanner. 29114_ Centrium Medium Armor Plating destroyed. 29115_ K-01 Serf collects debris. 29116_ Ended siege mode. 29116_ Acquired 1 matter. 29117_ Penetrated by Slug. 29117_ Bore Cannon destroyed. 29117_ Slug penetrates Wall. 29117_ Acquired 45 matter. 29118_ K-01 Serf collects debris. 29120_ Acquired 6 matter. 29121_ Slug penetrates Wall. 29122_ K-01 Serf collects debris. Map ----- +----------------------------------------------------+ | ?????????????????????????????????????????????????? | | ?????????????????????????????????????????????????? | | ?????????????????????????????????????????????????? | | ?????????????????????????????????????????????????? | | ?????????????????????????????????????????????????? | | ?????????????????????????????????????????????????? | | ?????????????????????????????????????????????????? | | ?????????????????????????????????????????????????? | | ?????????????????????????????????????????????????? | | ?????????????????????????????????????????????????? | | ??????????????????????????????????????????" ?????? | | ????????????????????????????????????????? ??????? | | ???????????????????????????????????????? "??????? | | ??????????????????????????????????????? ???????? | | ?????????????????????????????????????? ?????? ?? | | ????????????????????????????????????? ?????? ?? | | ???????????????????????????????????##########+###? | | ??????????????????????##???????????!%=% #? | | ??????????????????????# #????###### /? | | ???????????????????????# #???# #? | | ???????????????????########### A #? | | ???????????"" "????# % % # #? | | ???????????"" # [=! ] % #%! #? | | ??????????? +[[ ! k #R% ###########? | | ???????????????????#[ ! =h== k#??????????? | | ???????????????????# @ *=;g% #??????????? | | ???????????????????# "%[[#[ = #??????????? | | ???????????????????# "T" #^^ % ????? | | ???????????????????# """ # ^ ^ ?? | | ???????????????????########### *^ " " ""? | | ?????????????????????????????# % """ ""??? | | ?????????????????????????????# !* % """"??????? | | ?????????????????????????????# !* % ""??????? | | ?????????????????????????????# % ?????? | | ?????????????????????????????+ % % %% ?????? | | ?????????????????????????????# #######????? | | ?????????????????????????????# % %% #??? ?????? | | ?????????????????????????????# % #???? ?????? | | ?????????????????????????????# %%##?????????? | | ?????????????????????????????# ##?????????? | | ?????????????????????????????# #??????????? | | ?????????????????????????????# T??????????? | | ?????????????????????????????# #??????????? | | ?????????????????????????????? ????????????? | | ?????????????????????????????? ??????????????? | | ????????????????????????????????????